bitfinex-derivatives/quotes_BTCF0:USTF0_20241224
["timestamp","ask_amount","ask_price","bid_price","bid_amount"]
[1735067043556,0.050765,98547.0,98542.0,0.06671188]
[1735067044248,0.08990477,98551.0,98542.0,0.01594488]
[1735067044452,0.050765,98546.0,98542.0,0.01594488]
[1735067044649,0.050765,98546.0,98542.0,0.01494488]
[1735067044863,0.050765,98546.0,98542.0,0.01594488]
[1735067045464,0.050765,98546.0,98542.0,0.01494488]
[1735067046065,0.050765,98546.0,98542.0,0.01394488]
[1735067047371,0.050765,98546.0,98542.0,0.06471188]
[1735067047755,0.08990477,98550.0,98544.0,0.050766]
[1735067048564,0.08990477,98550.0,98542.0,0.004]
[1735067048759,0.050766,98545.0,98542.0,0.004]
[1735067049268,0.050766,98545.0,98544.0,0.003]
[1735067049764,0.050766,98545.0,98542.0,0.004]
[1735067050364,0.08990477,98552.0,98542.0,0.004]
[1735067050666,0.050767,98543.0,98542.0,0.004]
[1735067051962,0.050767,98543.0,98542.0,0.003]
[1735067054068,0.050767,98543.0,98542.0,0.004]
[1735067054767,0.050767,98543.0,98542.0,0.003]
[1735067057767,0.050769,98540.0,98537.0,0.0636]
[1735067057970,0.050769,98540.0,98536.0,0.06079483]
[1735067058172,0.050769,98538.0,98536.0,0.01002483]
[1735067058366,0.050769,98538.0,98531.0,0.24316472]
[1735067058571,0.050769,98538.0,98533.0,0.050772]
[1735067059070,0.050769,98538.0,98536.0,0.005]
[1735067059676,0.09001893,98537.0,98533.0,0.056772]
[1735067060368,0.14078893,98537.0,98536.0,0.001]
[1735067061077,0.14078893,98537.0,98533.0,0.051772]
[1735067061373,0.14078893,98537.0,98536.0,0.005]
[1735067061966,0.14078893,98537.0,98536.0,0.006]
[1735067062470,0.05177,98537.0,98536.0,0.001]
[1735067063068,0.05077,98537.0,98536.0,0.001]
[1735067063268,0.05077,98537.0,98536.0,0.006]
[1735067063470,0.05077,98537.0,98536.0,0.005]
[1735067063671,0.05077,98537.0,98536.0,0.006]
[1735067064376,0.05077,98537.0,98536.0,0.005]
[1735067064577,0.05077,98537.0,98527.0,0.00994366]
[1735067064877,0.05077,98537.0,98536.0,0.004]
[1735067065875,0.05077,98537.0,98534.0,0.050771]
[1735067065876,0.05177,98537.0,98534.0,0.050771]
[1735067066067,0.05077,98536.0,98534.0,0.050771]
[1735067067071,0.14074713,98535.0,98534.0,0.050771]
[1735067067270,0.050772,98533.0,98527.0,0.1395]
[1735067067872,0.050772,98533.0,98532.0,0.050772]
[1735067068074,0.08997613,98535.0,98532.0,0.050772]
[1735067068578,0.001,98533.0,98532.0,0.050772]
[1735067069275,0.001,98533.0,98532.0,0.056772]
[1735067070476,0.001,98533.0,98532.0,0.057772]
[1735067070877,0.09100243,98533.0,98532.0,0.057772]
[1735067072078,0.09100243,98533.0,98532.0,0.007]
[1735067072279,0.14177443,98533.0,98532.0,0.007]
[1735067073372,0.051772,98533.0,98532.0,0.007]
[1735067073769,0.001,98533.0,98532.0,0.007]
[1735067073981,0.001,98533.0,98532.0,0.057772]
[1735067075470,0.12000325,98537.0,98532.0,0.418572]
[1735067075679,0.14406006,98547.0,98535.0,0.3608]
[1735067075877,0.14406006,98547.0,98546.0,0.411565]
[1735067077180,0.09005765,98555.0,98550.0,0.050763]
[1735067077380,0.14081865,98555.0,98550.0,0.050763]
[1735067078077,0.45085765,98555.0,98540.0,0.30273944]
[1735067078383,0.050768,98541.0,98540.0,0.30273944]
[1735067078578,0.3608,98547.0,98539.0,0.30273944]
[1735067078776,0.050768,98540.0,98539.0,0.30273944]
[1735067078974,1.550768,98540.0,98539.0,0.30273944]
[1735067079380,0.050768,98540.0,98539.0,0.30273944]
[1735067080083,1.5,98545.0,98539.0,0.003]
[1735067080280,0.050768,98540.0,98539.0,0.003]
[1735067081583,0.044168,98540.0,98539.0,0.003]
[1735067082885,0.044168,98540.0,98539.0,0.053769]
[1735067083087,0.050766,98545.0,98539.0,0.003]
[1735067083280,0.050766,98544.0,98542.0,0.050767]
[1735067083986,0.3608,98547.0,98542.0,0.050767]
[1735067084185,0.050767,98543.0,98542.0,0.050767]
[1735067085198,0.17817721,98559.0,98539.0,0.003]
[1735067085495,0.22893821,98555.0,98554.0,0.050761]
[1735067085886,0.17817721,98555.0,98554.0,0.050761]
[1735067086695,0.18617721,98555.0,98554.0,0.050761]
[1735067087192,0.008,98555.0,98554.0,0.050761]
[1735067090706,0.0980207,98555.0,98554.0,0.050761]
[1735067091998,0.008,98555.0,98554.0,0.050761]
[1735067093500,0.008,98555.0,98554.0,0.23299049]
[1735067095098,0.008,98555.0,98554.0,0.050761]
[1735067100006,0.0900207,98576.0,98569.0,0.050753]
[1735067100007,0.1407707,98576.0,98569.0,0.050753]
[1735067100303,0.1407707,98576.0,98570.0,0.041653]
[1735067100505,0.1407707,98576.0,98566.0,0.46060327]
[1735067100696,0.0900207,98576.0,98574.0,0.05075]
[1735067100903,0.0900207,98576.0,98566.0,0.45968327]
[1735067101096,0.0900207,98576.0,98569.0,0.001]
[1735067101097,0.007,98576.0,98569.0,0.001]
[1735067101295,0.009,98576.0,98575.0,0.05075]
[1735067101495,0.00152189,98596.0,98595.0,0.05074]
[1735067102209,8.9e-07,98596.0,98595.0,0.05074]
[1735067102505,0.53453163,98626.0,98595.0,0.05074]
[1735067102506,0.53453163,98626.0,98617.0,0.050729]
[1735067102709,0.00052001,98624.0,98623.0,0.050726]
[1735067102904,0.0015213,98636.0,98634.0,0.05072]
[1735067103105,0.0015213,98636.0,98630.0,0.3608]
[1735067103601,0.0015213,98636.0,98635.0,0.050719]
[1735067104505,0.0055213,98636.0,98635.0,0.050719]
[1735067105410,0.0075213,98636.0,98635.0,0.051719]
[1735067106109,0.0075213,98636.0,98635.0,0.06188356]
[1735067106110,0.006,98636.0,98635.0,0.06188356]
[1735067106809,0.006,98636.0,98635.0,0.42268356]
[1735067107108,0.4309,98659.0,98636.0,0.050718]
[1735067107307,0.4309,98659.0,98655.0,0.050709]
[1735067107500,0.0701,98659.0,98655.0,0.050709]
[1735067107698,0.0701,98659.0,98657.0,0.050708]
[1735067107919,0.00052001,98663.0,98649.0,0.45968327]
[1735067108102,0.36232084,98668.0,98656.0,0.050708]
[1735067108297,0.004,98659.0,98658.0,0.09888327]
[1735067108499,0.004,98659.0,98657.0,0.050708]
[1735067109805,0.004,98659.0,98657.0,0.051708]
[1735067110007,0.36232084,98668.0,98657.0,0.051708]
[1735067110201,0.3608,98660.0,98635.0,0.3608]
[1735067110398,0.411512,98649.0,98640.0,0.050717]
[1735067111509,0.411512,98649.0,98641.0,0.050716]
[1735067112915,0.411512,98649.0,98641.0,0.053716]
[1735067113222,0.3608,98660.0,98650.0,0.050712]
[1735067113605,0.3608,98660.0,98651.0,0.050711]
[1735067113806,0.3608,98660.0,98657.0,0.050708]
[1735067114015,0.3608,98660.0,98658.0,0.050707]
[1735067114416,0.36140001,98678.0,98666.0,0.050703]
[1735067114611,0.3608,98678.0,98667.0,0.3608]
[1735067115613,0.00352084,98668.0,98667.0,0.001]
[1735067116511,0.00752084,98668.0,98667.0,0.001]
[1735067116709,0.00752084,98668.0,98667.0,0.051703]
[1735067117210,0.006,98668.0,98667.0,0.051703]
[1735067118116,0.004,98668.0,98667.0,0.411503]
[1735067118317,0.005,98668.0,98667.0,0.411503]
[1735067119616,0.00611108,98668.0,98667.0,0.411503]
[1735067120513,0.00611108,98668.0,98667.0,0.050703]
[1735067120714,0.00721965,98668.0,98667.0,0.050703]
[1735067121616,0.00721965,98668.0,98667.0,0.06066948]
[1735067122820,0.00321965,98668.0,98667.0,0.06066948]
[1735067123020,0.00632822,98668.0,98667.0,0.06066948]
[1735067123617,0.00432822,98668.0,98667.0,0.06066948]
[1735067123824,0.00432822,98668.0,98667.0,0.06166948]
[1735067124023,0.00543679,98668.0,98667.0,0.06166948]
[1735067124528,0.00443679,98668.0,98667.0,0.06366948]
[1735067125224,0.00554452,98668.0,98667.0,0.01296648]
[1735067125418,0.00554452,98668.0,98667.0,0.06366948]
[1735067126514,0.00665225,98668.0,98667.0,0.06366948]
[1735067126714,0.00665225,98668.0,98667.0,0.06166948]
[1735067126915,0.00665225,98668.0,98667.0,0.06366948]
[1735067127324,0.00665225,98668.0,98667.0,0.06166948]
[1735067127524,0.411495,98683.0,98675.0,0.04293902]
[1735067127731,0.411495,98683.0,98676.0,0.050698]
[1735067128233,0.3608,98683.0,98671.0,0.050701]
[1735067128418,0.0678,98688.0,98678.0,0.3608]
[1735067128626,0.0678,98688.0,98670.0,0.09888327]
[1735067128926,0.050694,98685.0,98677.0,0.050698]
[1735067129124,0.050694,98685.0,98678.0,0.050697]
[1735067129326,0.3608,98686.0,98673.0,0.0507]
[1735067129521,0.3608,98686.0,98667.0,0.01400648]
[1735067129717,0.050698,98677.0,98671.0,0.0507]
[1735067130030,0.050698,98677.0,98672.0,0.0507]
[1735067130218,0.3608,98686.0,98670.0,0.09888327]
[1735067130424,0.050695,98682.0,98675.0,0.050699]
[1735067130622,0.3608,98686.0,98675.0,0.050699]
[1735067130623,0.050696,98681.0,98675.0,0.050699]
[1735067131832,0.001,98681.0,98671.0,0.0507]
[1735067132031,0.050697,98678.0,98672.0,0.0507]
[1735067132430,0.050699,98675.0,98667.0,0.19197405]
[1735067132729,0.0507,98673.0,98667.0,0.24267705]
[1735067133431,0.0507,98673.0,98667.0,0.06066948]
[1735067133629,0.3608,98677.0,98667.0,0.00996648]
[1735067133834,0.411502,98668.0,98659.0,0.24332061]
[1735067134136,0.411506,98660.0,98659.0,0.24332061]
[1735067134927,0.050707,98659.0,98658.0,0.00152012]
[1735067138032,0.050707,98659.0,98658.0,0.00252012]
[1735067140829,0.050707,98659.0,98658.0,0.00152012]
[1735067141936,0.3608,98660.0,98658.0,0.00152012]
[1735067142133,0.3608,98660.0,98659.0,0.050707]
[1735067143730,0.050705,98664.0,98659.0,0.050707]
[1735067144839,0.050705,98664.0,98659.0,0.116507]
[1735067145137,0.050705,98664.0,98659.0,0.12672661]
[1735067146439,0.050705,98664.0,98659.0,0.07601961]
[1735067146842,0.050704,98666.0,98662.0,0.050705]
[1735067147638,0.050704,98666.0,98664.0,0.050704]
[1735067148032,0.051704,98666.0,98664.0,0.050704]
[1735067148337,0.050704,98665.0,98664.0,0.050704]
[1735067148538,0.050705,98664.0,98659.0,0.12672661]
[1735067148726,0.050705,98664.0,98659.0,0.07601961]
[1735067148931,0.050705,98664.0,98660.0,0.050706]
[1735067149135,0.050705,98664.0,98661.0,0.050706]
[1735067150125,0.051705,98664.0,98661.0,0.050706]
[1735067150732,0.052705,98664.0,98661.0,0.050706]
[1735067151442,0.051705,98664.0,98661.0,0.050706]
[1735067151637,0.052705,98664.0,98661.0,0.050706]
[1735067151837,0.052705,98664.0,98663.0,0.050705]
[1735067152037,0.002,98664.0,98663.0,0.050705]
[1735067153336,0.052704,98664.0,98663.0,0.050705]
[1735067153644,0.050705,98663.0,98661.0,0.050706]
[1735067154141,0.050705,98663.0,98659.0,0.07601961]
[1735067154444,0.050705,98663.0,98662.0,0.050705]
[1735067155044,0.051705,98663.0,98662.0,0.050705]
[1735067155246,0.001,98663.0,98662.0,0.050705]
[1735067155637,0.002,98663.0,98662.0,0.050705]
[1735067159642,0.002,98663.0,98658.0,0.00152012]
[1735067159643,0.050707,98659.0,98658.0,0.00152012]
[1735067159851,0.411507,98659.0,98658.0,0.00152012]
[1735067160032,1.911507,98659.0,98658.0,0.00152012]
[1735067160640,0.411507,98659.0,98658.0,0.00152012]
[1735067161644,0.412507,98659.0,98658.0,0.00152012]
[1735067162246,0.46181489,98659.0,98658.0,0.00152012]
[1735067163434,0.46281489,98659.0,98658.0,0.00152012]
[1735067164252,0.46181489,98659.0,98658.0,0.00152012]
[1735067164443,0.46281489,98659.0,98658.0,0.00152012]
[1735067171964,0.56364907,98659.0,98658.0,0.00152012]
[1735067173154,0.56364907,98659.0,98649.0,0.050712]
[1735067173349,0.411512,98650.0,98649.0,0.050712]
[1735067174460,0.411512,98650.0,98628.0,0.0659]
[1735067174763,0.050718,98637.0,98632.0,0.24332061]
[1735067174962,0.36132001,98650.0,98649.0,0.050712]
[1735067175166,0.001,98659.0,98649.0,0.3618]
[1735067175362,0.06408984,98658.0,98657.0,0.411508]
[1735067175758,0.06408984,98658.0,98657.0,0.545808]
[1735067176156,0.06577726,98667.0,98666.0,0.050703]
[1735067176362,0.3608,98677.0,98676.0,0.050698]
[1735067176563,0.2288605,98681.0,98676.0,0.050698]
[1735067176869,0.050697,98680.0,98676.0,0.050698]
[1735067177364,0.005,98677.0,98676.0,0.050698]
[1735067177564,0.006,98677.0,98676.0,0.051698]
[1735067178162,0.001,98677.0,98676.0,0.051698]
[1735067178869,0.001,98677.0,98676.0,0.06174759]
[1735067179086,0.001,98677.0,98676.0,0.001]
[1735067179087,0.051698,98677.0,98676.0,0.001]
[1735067179288,0.050699,98676.0,98672.0,0.0507]
[1735067179478,0.006,98680.0,98672.0,0.0507]
[1735067179677,0.050699,98675.0,98672.0,0.0507]
[1735067179986,0.0507,98673.0,98668.0,0.116602]
[1735067180185,0.0507,98673.0,98668.0,0.0659]
[1735067180393,0.0507,98673.0,98669.0,0.050702]
[1735067180687,0.0507,98673.0,98668.0,0.07609333]
[1735067180885,0.050701,98671.0,98668.0,0.07609333]
[1735067181086,0.3608,98670.0,98668.0,0.07609333]
[1735067181689,0.050702,98669.0,98668.0,0.0659]
[1735067182085,0.050699,98674.0,98668.0,0.0659]
[1735067182577,0.050699,98674.0,98669.0,0.002]
[1735067182783,0.050699,98674.0,98669.0,0.052702]
[1735067182983,0.050699,98674.0,98669.0,0.050702]
[1735067183581,0.3608,98678.0,98675.0,0.050699]
[1735067183786,0.3608,98678.0,98676.0,0.1365]
[1735067184890,0.3618,98678.0,98676.0,0.1365]
[1735067185895,0.3628,98678.0,98676.0,0.1365]
[1735067186397,0.001,98678.0,98676.0,0.187198]
[1735067186698,0.002,98678.0,98676.0,0.187198]
[1735067187590,0.052697,98678.0,98676.0,0.118298]
[1735067188493,0.002,98678.0,98677.0,0.050698]
[1735067189596,0.003,98678.0,98677.0,0.050698]
[1735067189995,0.004,98678.0,98677.0,0.050698]
[1735067194098,0.004,98678.0,98676.0,0.07754404]
[1735067195192,0.003,98678.0,98677.0,0.050698]
[1735067196090,0.002,98678.0,98677.0,0.050698]
[1735067196292,0.003,98678.0,98677.0,0.050698]
[1735067196791,0.002,98678.0,98677.0,0.050698]
[1735067196992,0.004,98678.0,98677.0,0.050698]
[1735067200705,0.3608,98697.0,98676.0,0.07754404]
[1735067200706,0.3608,98697.0,98696.0,0.050688]
[1735067201700,0.00052001,98725.0,98696.0,0.6608]
[1735067201893,0.04915931,98710.0,98709.0,0.411481]
[1735067202103,0.411472,98728.0,98709.0,0.3608]
[1735067202104,0.050675,98721.0,98709.0,0.3608]
[1735067202405,0.050675,98721.0,98716.0,0.050678]
[1735067202600,0.050675,98721.0,98711.0,0.09888327]
[1735067202802,0.050673,98726.0,98718.0,0.050677]
[1735067202996,0.050673,98726.0,98718.0,0.09888327]
[1735067203202,0.004,98721.0,98720.0,0.050676]
[1735067203803,0.050673,98725.0,98711.0,0.09888327]
[1735067204106,0.050673,98725.0,98722.0,0.050674]
[1735067204305,0.050673,98725.0,98723.0,0.050674]
[1735067205298,0.050674,98724.0,98723.0,0.050674]
[1735067205698,0.050674,98724.0,98723.0,0.051674]
[1735067206199,0.050674,98724.0,98723.0,0.052674]
[1735067207007,0.050674,98724.0,98723.0,0.051674]
[1735067207210,0.054674,98724.0,98723.0,0.052674]
[1735067211400,0.004,98724.0,98723.0,0.052674]
[1735067216212,0.01563934,98742.0,98723.0,0.002]
[1735067216417,0.01563934,98744.0,98733.0,0.09888327]
[1735067216611,0.01563934,98744.0,98743.0,0.050664]
[1735067216819,0.01563934,98748.0,98747.0,0.050662]
[1735067217009,0.01563934,98750.0,98747.0,0.050662]
[1735067217205,0.01563934,98750.0,98749.0,0.050661]
[1735067217410,0.0652,98757.0,98749.0,0.05066]
[1735067217607,0.050659,98754.0,98749.0,0.05066]
[1735067217811,0.050659,98752.0,98749.0,0.05066]
[1735067218315,0.01563001,98753.0,98749.0,0.001]
[1735067218523,0.05066,98750.0,98749.0,0.001]
[1735067218907,0.05066,98750.0,98739.0,0.01226994]
[1735067219107,0.36231967,98751.0,98731.0,0.3608]
[1735067219108,0.05067,98732.0,98731.0,0.3608]
[1735067219312,0.050665,98740.0,98736.0,0.050667]
[1735067219511,0.01562298,98740.0,98731.0,0.3608]
[1735067219723,0.050667,98736.0,98734.0,0.050668]
[1735067220427,0.05067,98732.0,98731.0,0.3608]
[1735067220617,0.0637,98738.0,98723.0,0.01242151]
[1735067220816,0.050675,98722.0,98712.0,0.3608]
[1735067221017,0.050675,98722.0,98713.0,0.01222484]
[1735067221213,0.050675,98722.0,98716.0,0.050677]
[1735067221421,0.050675,98722.0,98717.0,0.050677]
[1735067221720,0.050672,98728.0,98721.0,0.05219441]
[1735067221917,0.050672,98728.0,98722.0,0.050674]
[1735067222227,0.050672,98728.0,98721.0,0.00151941]
[1735067222430,0.050672,98728.0,98723.0,0.050674]
[1735067223316,0.3608,98732.0,98721.0,0.36331941]
[1735067223527,0.09001941,98736.0,98722.0,0.067]
[1735067223720,0.09001941,98736.0,98735.0,0.050668]
[1735067224022,0.15632581,98740.0,98735.0,0.050668]
[1735067224424,0.09001941,98740.0,98732.0,0.050669]
[1735067224617,0.050668,98735.0,98732.0,0.050669]
[1735067225217,0.14068541,98740.0,98732.0,0.050669]
[1735067225418,0.050666,98740.0,98732.0,0.050669]
[1735067225619,0.050666,98740.0,98733.0,0.050669]
[1735067225820,0.0156404,98741.0,98738.0,0.050666]
[1735067226020,0.0156404,98743.0,98742.0,0.050664]
[1735067226423,0.0641,98748.0,98743.0,0.050664]
[1735067226926,0.0641,98748.0,98744.0,0.050663]
[1735067227121,0.0641,98748.0,98746.0,0.050662]
[1735067227317,0.05066,98750.0,98746.0,0.050662]
[1735067227523,0.05066,98750.0,98738.0,0.09888327]
[1735067227735,0.05066,98750.0,98748.0,0.050661]
[1735067228723,0.05166,98750.0,98748.0,0.050661]
[1735067229027,0.001,98750.0,98745.0,0.3608]
[1735067229226,0.001,98750.0,98746.0,0.050662]
[1735067229527,0.001,98750.0,98749.0,0.050661]
[1735067230822,0.09001941,98756.0,98746.0,0.134]
[1735067231130,0.09001941,98756.0,98755.0,0.050658]
[1735067231835,0.09001941,98756.0,98750.0,0.05066]
[1735067232023,0.09101941,98756.0,98752.0,0.050659]
[1735067232333,0.09101941,98756.0,98746.0,0.29848327]
[1735067232334,0.001,98756.0,98753.0,0.050659]
[1735067232534,0.001,98756.0,98755.0,0.051658]
[1735067234128,0.001,98756.0,98754.0,0.3608]
[1735067234326,0.050658,98755.0,98754.0,0.3608]
[1735067234527,0.001,98756.0,98755.0,0.001]
[1735067235040,0.050657,98756.0,98754.0,0.3608]
[1735067235340,0.050657,98756.0,98755.0,0.050658]
[1735067235341,0.001,98756.0,98755.0,0.050658]
[1735067235631,0.050655,98761.0,98754.0,0.3608]
[1735067235835,0.001,98756.0,98755.0,0.051658]
[1735067238435,0.001,98756.0,98754.0,0.3618]
[1735067238636,0.001,98756.0,98755.0,0.050658]
[1735067239033,0.001,98756.0,98755.0,0.051658]
[1735067239537,0.001,98756.0,98754.0,0.3618]
[1735067239729,0.001,98756.0,98755.0,0.050658]
[1735067241738,0.051658,98756.0,98754.0,0.3608]
[1735067241938,0.001,98756.0,98755.0,0.050658]
[1735067242240,0.001,98756.0,98754.0,0.3608]
[1735067242542,0.050658,98755.0,98754.0,0.3608]
[1735067243940,0.050663,98746.0,98743.0,0.24332061]
[1735067244239,0.050663,98746.0,98740.0,0.09888327]
[1735067244240,0.08405088,98745.0,98740.0,0.09888327]
[1735067244535,0.050666,98739.0,98738.0,0.24332061]
[1735067245535,0.050669,98733.0,98732.0,0.30273944]
[1735067245727,0.050675,98722.0,98718.0,0.30289214]
[1735067245923,0.050676,98719.0,98718.0,0.30289214]
[1735067246823,0.05068,98711.0,98710.0,0.36328732]
[1735067247030,0.41148,98711.0,98710.0,0.36328732]
[1735067247430,0.41148,98711.0,98694.0,0.49367521]
[1735067247431,0.050688,98695.0,98694.0,0.06984]
[1735067247737,0.050688,98695.0,98694.0,0.0688]
[1735067248430,0.050688,98695.0,98694.0,0.119489]
[1735067248627,0.3608,98703.0,98694.0,0.0688]
[1735067248827,0.050682,98708.0,98707.0,0.050681]
[1735067249024,0.3608,98711.0,98710.0,0.050681]
[1735067249229,0.3608,98711.0,98700.0,0.09888327]
[1735067249438,0.09888327,98710.0,98700.0,0.050686]
[1735067249632,0.050683,98706.0,98701.0,0.050685]
[1735067249835,0.3608,98711.0,98701.0,0.050685]
[1735067250137,0.050684,98704.0,98702.0,0.0695]
[1735067251445,0.08991602,98708.0,98702.0,0.0695]
[1735067251636,0.050684,98703.0,98702.0,0.0725]
[1735067251838,0.050684,98703.0,98702.0,0.0785]
[1735067252533,0.050681,98709.0,98702.0,0.0785]
[1735067252733,0.050681,98709.0,98703.0,0.0703]
[1735067252931,0.08991602,98710.0,98703.0,0.4311]
[1735067253440,0.08991602,98710.0,98708.0,0.050682]
[1735067253833,0.05068,98712.0,98708.0,0.050682]
[1735067254027,0.05068,98712.0,98703.0,0.43218]
[1735067254242,0.05068,98712.0,98709.0,0.050681]
[1735067254831,0.050684,98704.0,98703.0,0.36184]
[1735067255033,0.050684,98704.0,98703.0,0.3608]
[1735067256641,0.3608,98704.0,98702.0,0.0695]
[1735067256848,0.050684,98703.0,98702.0,0.0695]
[1735067257044,0.050688,98695.0,98691.0,0.05069]
[1735067257943,0.050688,98695.0,98690.0,0.1348]
[1735067258147,0.050688,98695.0,98694.0,0.0778]
[1735067258845,0.45968327,98704.0,98695.0,0.050688]
[1735067258846,0.050686,98700.0,98695.0,0.050688]
[1735067259044,0.08991602,98709.0,98695.0,0.3608]
[1735067259445,0.08991602,98709.0,98700.0,0.050686]
[1735067259642,0.050684,98703.0,98700.0,0.050686]
[1735067260047,0.09888327,98720.0,98700.0,0.050686]
[1735067260048,0.050685,98702.0,98700.0,0.050686]
[1735067260639,0.050685,98701.0,98700.0,0.050686]
[1735067260950,0.050685,98701.0,98700.0,0.057686]
[1735067261153,0.050685,98701.0,98700.0,0.060686]
[1735067261341,0.050685,98701.0,98700.0,0.053686]
[1735067261540,0.050685,98701.0,98700.0,0.060686]
[1735067261843,0.050685,98701.0,98700.0,0.057686]
[1735067262045,0.050685,98701.0,98700.0,0.060686]
[1735067264539,0.050685,98701.0,98700.0,0.01]
[1735067265040,0.050679,98715.0,98700.0,0.01]
[1735067265041,0.08991602,98715.0,98700.0,0.01]
[1735067265235,0.14059402,98715.0,98714.0,0.050679]
[1735067266442,0.050678,98715.0,98714.0,0.050679]
[1735067268742,0.45071602,98724.0,98712.0,0.0682]
[1735067268950,0.050679,98713.0,98712.0,0.0682]
[1735067269950,0.050679,98713.0,98712.0,0.0692]
[1735067270556,0.050679,98713.0,98712.0,0.0682]
[1735067270557,0.14059502,98713.0,98712.0,0.0682]
[1735067270751,0.14059502,98713.0,98712.0,0.0702]
[1735067271845,0.050679,98713.0,98712.0,0.0702]
[1735067274455,0.09995871,98713.0,98712.0,0.0702]
[1735067275960,0.09995871,98713.0,98712.0,0.12088]
[1735067276968,0.27999753,98713.0,98712.0,0.12088]
[1735067279454,0.27999753,98713.0,98712.0,0.0702]
[1735067281761,0.09995871,98713.0,98712.0,0.0702]
[1735067282446,0.050679,98713.0,98712.0,0.0702]
[1735067283457,0.28057794,98713.0,98712.0,0.0702]
[1735067286651,0.09995871,98713.0,98712.0,0.0702]
[1735067287258,0.09995871,98713.0,98712.0,0.12088]
[1735067288757,0.09995871,98713.0,98712.0,0.0702]
[1735067289568,0.28057794,98713.0,98712.0,0.0702]
[1735067290866,0.09995871,98713.0,98712.0,0.0702]
[1735067291773,0.09995871,98713.0,98712.0,0.12088]
[1735067291969,0.050679,98713.0,98712.0,0.12088]
[1735067292966,0.00151993,98716.0,98715.0,0.050678]
[1735067293173,0.05067,98731.0,98727.0,0.050672]
[1735067295173,0.001,98728.0,98719.0,0.3608]
[1735067295377,0.001,98728.0,98727.0,0.050672]
[1735067296262,0.1506455,98729.0,98728.0,0.050672]
[1735067297271,0.1506455,98729.0,98719.0,0.3608]
[1735067297272,0.01569293,98730.0,98729.0,0.050671]
[1735067297567,0.1506455,98731.0,98730.0,0.050671]
[1735067297973,0.2013155,98731.0,98730.0,0.050671]
[1735067298364,0.1506455,98731.0,98730.0,0.050671]
[1735067298674,0.01569293,98733.0,98732.0,0.05067]
[1735067298875,0.21700643,98735.0,98734.0,0.050668]
[1735067299064,0.2013135,98735.0,98734.0,0.050668]
[1735067299965,0.050668,98735.0,98734.0,0.050668]
[1735067300267,0.051668,98735.0,98734.0,0.050668]
[1735067300572,0.050672,98731.0,98730.0,0.05067]
[1735067302365,0.051672,98731.0,98730.0,0.05067]
[1735067305081,0.17204466,98731.0,98730.0,0.05067]
[1735067305775,0.17204466,98731.0,98725.0,0.09888327]
[1735067305776,0.12137266,98731.0,98719.0,0.3608]
[1735067305975,0.12137266,98731.0,91639.0,0.0025]
[1735067305976,0.05068,98712.0,98708.0,0.050681]
[1735067306783,0.05068,98712.0,98706.0,0.24243167]
[1735067306784,0.05068,98712.0,98706.0,0.26156767]
[1735067307668,0.050682,98709.0,98706.0,0.019136]
[1735067308076,0.050682,98709.0,98706.0,0.069819]
[1735067308389,0.050682,98709.0,98707.0,0.411482]
[1735067309080,0.050682,98709.0,98707.0,0.421482]
[1735067309673,0.17105166,98714.0,98707.0,0.3708]
[1735067310180,0.050679,98713.0,98709.0,0.050681]
[1735067310384,0.050679,98713.0,98707.0,0.3708]
[1735067310385,0.09023862,98708.0,98707.0,0.422602]
[1735067310581,0.12037266,98714.0,98713.0,0.050679]
[1735067310885,0.1506455,98723.0,98721.0,0.050675]
[1735067311186,0.1506455,98723.0,98722.0,0.050675]
[1735067311778,0.050673,98725.0,98722.0,0.050675]
[1735067311979,0.1506455,98731.0,98717.0,0.3608]
[1735067312172,0.050676,98720.0,98719.0,0.050676]
[1735067312373,0.050674,98724.0,98719.0,0.050676]
[1735067312579,0.050674,98724.0,98721.0,0.050675]
[1735067312892,0.050674,98724.0,98721.0,0.051675]
[1735067313790,0.050672,98729.0,98722.0,0.0668]
[1735067314086,0.050673,98727.0,98724.0,0.050673]
[1735067314291,0.050672,98728.0,98724.0,0.050673]
[1735067315382,0.1506455,98731.0,98724.0,0.050673]
[1735067315577,0.050672,98727.0,98725.0,0.050673]
[1735067316392,0.050673,98726.0,98725.0,0.050673]
[1735067318387,0.051673,98726.0,98725.0,0.050673]
[1735067318883,0.050674,98723.0,98722.0,0.1312]
[1735067319192,0.050674,98723.0,98722.0,0.0644]
[1735067321384,0.050677,98718.0,98717.0,0.3608]
[1735067322792,0.050677,98718.0,98717.0,0.3648]
[1735067326200,0.050677,98718.0,98717.0,0.004]
[1735067326995,0.09995365,98718.0,98717.0,0.004]
[1735067336798,0.09995365,98718.0,98717.0,0.054677]
[1735067338099,0.14187634,98718.0,98717.0,0.054677]
[1735067338502,0.04192269,98718.0,98717.0,0.054677]
[1735067338805,0.15103513,98718.0,98717.0,0.054677]
[1735067339005,0.15103513,98718.0,98717.0,0.123877]
[1735067340606,0.15103513,98722.0,98721.0,0.050675]
[1735067341002,0.20171013,98722.0,98721.0,0.050675]
[1735067341303,0.050676,98719.0,98718.0,0.050676]
[1735067341517,0.050677,98718.0,98717.0,0.0732]
[1735067341807,0.050677,98718.0,98717.0,0.0722]
[1735067341998,0.050677,98718.0,98717.0,0.0692]
[1735067343099,0.050677,98718.0,98717.0,0.0722]
[1735067344405,0.050677,98718.0,98717.0,0.0732]
[1735067352516,0.15103513,98724.0,98717.0,0.0732]
[1735067352711,0.050675,98722.0,98721.0,0.050675]
[1735067353020,0.15103513,98724.0,98723.0,0.050674]
[1735067353410,0.16677048,98724.0,98723.0,0.050674]
[1735067353918,0.20170813,98725.0,98723.0,0.050674]
[1735067355325,0.050674,98724.0,98723.0,0.050674]